fUST/lending_fUST_20250816
["ID","MTS","AMOUNT","RATE_DAILY","PERIOD"]
[379448602,1755281569598,460.0,0.00027371,60]
[379448604,1755281584006,460.0,0.00027371,60]
[379448606,1755281633648,460.0,0.00027371,60]
[379448607,1755281633975,488.82,0.00027371,60]
[379448611,1755281677896,228.813028,0.00013699,2]
[379448624,1755281719996,460.0,0.00027371,60]
[379448639,1755281858052,237.00977719,0.00027381,60]
[379448682,1755282487060,5000.0,0.000173,6]
[379448749,1755282502779,3550.90469608,0.000173,6]
[379449924,1755282563167,-254.142291,0.00017193,2]
[379449925,1755282563187,-41.817709,0.00017505,2]
[379450119,1755282631918,-232.26672878,0.00017505,2]
[379450121,1755282631927,-1200.0,0.00018032,2]
[379450123,1755282631938,-300.0,0.00018032,2]
[379450125,1755282631948,-1200.0,0.00018033,2]
[379450127,1755282631957,-300.0,0.00018033,2]
[379450128,1755282631966,-300.0,0.00018033,2]
[379450129,1755282631975,-300.0,0.00018033,2]
[379450131,1755282631985,-300.0,0.00018033,2]
[379450133,1755282631993,-151.0,0.00018035,2]
[379450135,1755282632002,-222.22176772,0.00018035,2]
[379450137,1755282632014,-1036.37283155,0.00018035,2]
[379450141,1755282632025,-1910.71215391,0.00018035,2]
[379450207,1755282638132,-5750.33155566,0.00018035,2]
[379450208,1755282638142,-151.0,0.00018035,2]
[379450209,1755282638151,-151.0,0.00018035,2]
[379450210,1755282638160,-151.0,0.00018035,2]
[379450211,1755282638170,-151.0,0.00018035,2]
[379450212,1755282638179,-151.0,0.00018035,2]
[379450213,1755282638189,-151.0,0.00018035,2]
[379450214,1755282638199,-151.0,0.00018035,2]
[379450215,1755282638208,-151.0,0.00018035,2]
[379450216,1755282638218,-151.0,0.00018035,2]
[379450217,1755282638227,-151.0,0.00018035,2]
[379450218,1755282638239,-151.0,0.00018035,2]
[379450219,1755282638248,-151.0,0.00018035,2]
[379450220,1755282638258,-151.0,0.00018035,2]
[379450221,1755282638267,-151.0,0.00018035,2]
[379450222,1755282638277,-151.0,0.00018035,2]
[379450223,1755282638287,-151.0,0.00018035,2]
[379450224,1755282638297,-151.0,0.00018035,2]
[379450226,1755282638306,-151.0,0.00018035,2]
[379450227,1755282638316,-151.0,0.00018035,2]
[379450228,1755282638325,-25963.0949045,0.00018046,2]
[379450229,1755282638337,-47955.24651633,0.00018046,2]
[379450230,1755282638349,-820.20000026,0.00018046,2]
[379450300,1755282642964,-1244.55239043,0.00018046,2]
[379450301,1755282642973,-358.58687197,0.00018195,2]
[379450302,1755282642983,-641.55270149,0.00018295,2]
[379450304,1755282642994,-200.0,0.00018395,2]
[379450306,1755282643003,-200.0,0.00018395,2]
[379450308,1755282643012,-119.82486971,0.00018395,2]
[379450376,1755282646032,-80.17513029,0.00018395,2]
[379450377,1755282646042,-200.0,0.00018395,2]
[379450378,1755282646052,-200.0,0.00018395,2]
[379450379,1755282646062,-200.0,0.00018395,2]
[379450380,1755282646071,-185.05427938,0.00019178,2]
[379450381,1755282646082,-500.0,0.00019218,2]
[379450382,1755282646093,-500.0,0.0001931,2]
[379450383,1755282646103,-498.52055139,0.0001931,2]
[379450384,1755282646196,-1.47944861,0.0001931,2]
[379450385,1755282646205,-500.0,0.0001931,2]
[379450386,1755282646214,-263.34307843,0.00019436,2]
[379450388,1755282646224,-500.0,0.00019436,2]
[379450389,1755282646234,-358.58687193,0.00019493,2]
[379450390,1755282646246,-222.99060083,0.00019675,2]
[379451171,1755282934963,217.372376,0.00013699,2]
[379451908,1755283643134,-488.29429346,0.00017763,2]
[379451910,1755283691425,2000.0,0.00027421,120]
[379451911,1755283692228,1061.031,0.00027421,120]
[379451922,1755283832309,-2701.68103622,0.00017585,6]
[379451923,1755283832319,-1200.0,0.0001794,2]
[379451924,1755283832329,-1200.0,0.00017941,2]
[379451926,1755283832338,-300.0,0.00017941,2]
[379451927,1755283832348,-300.0,0.00017941,2]
[379451928,1755283832357,-300.0,0.00017941,2]
[379451929,1755283832366,-300.0,0.00017941,2]
[379451930,1755283832376,-300.0,0.00017941,2]
[379451931,1755283832385,-300.0,0.00017941,2]
[379451932,1755283832394,-10000.0,0.00017942,2]
[379451933,1755283832403,-200.0,0.000183,2]
[379451934,1755283832412,-200.0,0.000183,2]
[379451935,1755283832422,-200.0,0.000183,2]
[379451936,1755283832431,-200.0,0.000183,2]
[379451937,1755283832441,-200.0,0.000183,2]
[379451938,1755283832450,-200.0,0.000183,2]
[379451939,1755283832459,-50000.0,0.000183,2]
[379451940,1755283832468,-360.63432504,0.00018689,2]
[379451941,1755283832478,-160.0,0.00018892,2]
[379451942,1755283832486,-513.2421612,0.00019166,2]
[379451943,1755283832498,-500.0,0.00019245,2]
[379451944,1755283832508,-500.0,0.00019245,2]
[379451945,1755283832519,-151.0,0.00019253,2]
[379451947,1755283832528,-151.0,0.00019253,2]
[379451949,1755283832537,-151.0,0.00019253,2]
[379451951,1755283832546,-151.0,0.00019253,2]
[379451953,1755283832556,-505.68275042,0.00019266,2]
[379451955,1755283832565,-505.68275042,0.00019266,2]
[379451957,1755283832575,-505.68275042,0.00019266,2]
[379451959,1755283832583,-505.68275042,0.00019266,2]
[379451961,1755283832593,-505.68275042,0.00019266,2]
[379451963,1755283832602,-505.68275042,0.00019266,2]
[379451965,1755283832612,-505.68275042,0.00019266,2]
[379451967,1755283832621,-505.68275042,0.00019266,2]
[379451969,1755283832630,-505.68275042,0.00019266,2]
[379451971,1755283832639,-505.68275042,0.00019266,2]
[379451972,1755283832648,-505.68275042,0.00019266,2]
[379451974,1755283832657,-505.68275042,0.00019266,2]
[379451976,1755283832666,-505.68275042,0.00019266,2]
[379451978,1755283832675,-505.68275042,0.00019266,2]
[379451980,1755283832685,-505.68275042,0.00019266,2]
[379451982,1755283832694,-505.68275042,0.00019266,2]
[379451984,1755283832703,-524.07121408,0.00019266,2]
[379451985,1755283832712,-524.07121408,0.00019266,2]
[379451987,1755283832722,-524.07121408,0.00019266,2]
[379451989,1755283832731,-524.07121408,0.00019266,2]
[379451990,1755283832740,-524.07121408,0.00019266,2]
[379451991,1755283832753,-524.07121408,0.00019266,2]
[379451992,1755283832763,-524.07121408,0.00019266,2]
[379451993,1755283832772,-524.07121408,0.00019266,2]
[379451994,1755283832782,-524.07121408,0.00019266,2]
[379451995,1755283832791,-764.44272845,0.00019266,2]
[379451996,1755283832801,-1057.17612433,0.00019267,2]
[379451997,1755283832810,-1276.81039158,0.00019267,2]
[379452036,1755283838131,-1057.0,0.00019267,2]
[379452038,1755283838143,-1427.73336685,0.00019267,2]
[379452040,1755283838155,-444.1942056,0.00019267,2]
[379452050,1755283838237,-604.90997089,0.00019267,2]
[379452052,1755283838251,-1908.16636108,0.00019267,2]
[379452057,1755283838291,-36206.1431613,0.00019267,2]
[379452059,1755283838301,-2275.3203943,0.00019348,2]
[379452061,1755283838311,-513.24216116,0.00019443,2]
[379452063,1755283838320,-300.0,0.00019577,2]
[379452066,1755283838330,-420.0,0.00019577,2]
[379452068,1755283838340,-307.33650888,0.00019591,2]
[379452070,1755283838349,-930.04733021,0.00019653,2]
[379452072,1755283838358,-418.87639331,0.00019653,2]
[379452074,1755283838368,-1675.50557325,0.00019653,2]
[379452076,1755283838378,-3769.88753981,0.00019717,2]
[379452078,1755283838387,-513.24216116,0.0001972,2]
[379452080,1755283838396,-175.66519,0.00019863,2]
[379452082,1755283838406,-513.24216116,0.00019996,2]
[379452084,1755283838415,-160.0,0.00020024,2]
[379452086,1755283838425,-160.0,0.00020024,2]
[379452088,1755283838434,-232.08354597,0.00020024,2]
[379452090,1755283838443,-417.15472785,0.00020024,2]
[379452092,1755283838452,-843.47195277,0.00020024,2]
[379452094,1755283838461,-216.77912109,0.00020024,2]
[379452096,1755283838470,-200.0,0.00020099,20]
[379452098,1755283838480,-200.0,0.00020099,20]
[379452100,1755283838489,-200.0,0.00020099,20]
[379452102,1755283838499,-200.0,0.00020099,20]
[379452104,1755283838509,-200.0,0.00020099,20]
[379452106,1755283838519,-200.0,0.00020099,20]
[379452108,1755283838528,-200.0,0.00020099,20]
[379452110,1755283838537,-280.0,0.00020099,20]
[379452112,1755283838547,-179.94600898,0.00020249,2]
[379452114,1755283838556,-513.24216116,0.00020273,2]
[379452116,1755283838566,-1170.53,0.00020306,3]
[379452118,1755283838575,-585.26,0.00020306,3]
[379452120,1755283838584,-292.63,0.00020306,3]
[379452122,1755283838593,-292.63,0.00020306,3]
[379452124,1755283838603,-21039.68518185,0.00020316,2]
[379452126,1755283838614,-193842.58310543,0.00020316,2]
[379452128,1755283838623,-500.0,0.00020373,2]
[379452130,1755283838634,-500.0,0.00020373,2]
[379452132,1755283838652,-1000.0,0.00020416,2]
[379452134,1755283838672,-1000.0,0.00020416,2]
[379452136,1755283838682,-160.0,0.00020442,2]
[379452138,1755283838691,-6695.3202707,0.00020498,2]
[379452140,1755283838701,-164.66870259,0.00020522,2]
[379452142,1755283838710,-150.069,0.00020601,2]
[379452144,1755283838719,-150.0,0.00020601,2]
[379452146,1755283838729,-3716.46913152,0.00020951,2]
[379452148,1755283838738,-260.0,0.0002099,2]
[379452150,1755283838748,-150.0,0.00020999,2]
[379452152,1755283838757,-1086.3550494,0.00021,2]
[379452154,1755283838766,-203.01828939,0.00021,2]
[379452156,1755283838775,-972.0,0.0002115,2]
[379452158,1755283838785,-408.0,0.0002115,2]
[379452160,1755283838794,-636.0,0.0002115,2]
[379452162,1755283838803,-2152.0,0.0002115,2]
[379452164,1755283838813,-587.0,0.00021362,2]
[379452166,1755283838822,-316.97,0.00021451,2]
[379452168,1755283838832,-360.0,0.00021538,2]
[379452171,1755283838843,-2341.06,0.00021676,3]
[379452173,1755283838853,-1170.52,0.00021676,3]
[379452175,1755283838863,-585.26,0.00021676,3]
[379452177,1755283838872,-585.26,0.00021676,3]
[379452179,1755283838882,-150.0,0.000219,2]
[379452181,1755283838891,-153.78,0.00022,7]
[379452182,1755283838901,-15025.38,0.00022,7]
[379452184,1755283838910,-3911.96,0.00022,7]
[379452186,1755283838919,-200.0,0.00022,2]
[379452188,1755283838928,-200.0,0.00022075,20]
[379452190,1755283838939,-200.0,0.00022075,20]
[379452192,1755283838959,-200.0,0.00022075,20]
[379452194,1755283838977,-200.0,0.00022075,20]
[379452196,1755283838986,-200.0,0.00022075,20]
[379452198,1755283838997,-200.0,0.00022075,20]
[379452200,1755283839006,-200.0,0.00022075,20]
[379452202,1755283839015,-200.0,0.00022075,20]
[379452204,1755283839024,-200.0,0.00022075,20]
[379452206,1755283839033,-200.0,0.00022075,20]
[379452208,1755283839042,-350.0,0.00022075,20]
[379452210,1755283839051,-460.0,0.00022086,2]
[379452212,1755283839062,-500.0,0.000221,2]
[379452214,1755283839071,-160.0,0.000222,7]
[379452216,1755283839082,-482.359,0.00022465,2]
[379452218,1755283839092,-560.0,0.00022634,2]
[379452220,1755283839102,-168.0,0.00022682,2]
[379452222,1755283839111,-60839.74813014,0.000227,2]
[379452225,1755283839123,-5899.95210121,0.000227,2]
[379452231,1755283839178,460.0,0.00027398,60]
[379452568,1755283843011,460.0,0.00027398,60]
[379452571,1755283844195,-500.0,0.00018299,2]
[379452572,1755283844205,-36.08781626,0.00018299,2]
[379452573,1755283844248,-220.84939383,0.00018299,2]
[379452574,1755283844260,-218.03416566,0.00018299,2]
[379452575,1755283844270,-62.19972726,0.00019247,2]
[379452576,1755283844281,-131.39100815,0.00019247,2]
[379452577,1755283844290,-172.41958563,0.00019266,2]
[379452578,1755283844303,-266.45929785,0.00019266,2]
[379452580,1755283844312,-11747.54070415,0.000227,2]
[379452596,1755283846107,-172.082066,0.00022006,2]
[379452597,1755283846117,-7831.69203999,0.000227,2]
[379452607,1755283851401,460.0,0.00027398,60]
[379452608,1755283925777,292.93743122,0.00027398,60]
[379452609,1755283928090,502.69,0.00027398,60]
[379452611,1755283934546,460.0,0.00027398,60]
[379452612,1755283959059,460.0,0.0002738,60]
[379452613,1755283980136,460.0,0.0002738,60]
[379452614,1755283982455,460.0,0.0002738,60]
[379452615,1755283995267,460.0,0.0002738,60]
[379452616,1755284019040,5034.9175,0.0001644,2]
[379452617,1755284036456,3145770.20674389,0.0002738,60]
[379452619,1755284126318,238.679959,0.00013699,2]
[379452627,1755284832109,-802.6589067,0.00017118,2]
[379452628,1755284832129,-346.5048071,0.00017216,2]
[379452629,1755284947162,-251.73972423,0.00017239,2]
[379452630,1755284954329,-118.69830297,0.00017239,2]
[379452631,1755284954350,-240.56559128,0.00017246,2]
[379452679,1755285032384,-9.77688872,0.00017246,2]
[379452681,1755285032394,-309.61770391,0.00017403,2]
[379452698,1755285032408,-1550.5971132,0.00017416,2]
[379452701,1755285032559,-503.97634382,0.00017724,2]
[379452703,1755285032568,-899.55412791,0.00017953,2]
[379452705,1755285032577,-1200.0,0.00018166,2]
[379452707,1755285032586,-21.75598582,0.00018167,2]
[379452859,1755285038339,-278.24401418,0.00018167,2]
[379452861,1755285038351,-300.0,0.00018167,2]
[379452864,1755285038363,-300.0,0.00018167,2]
[379452866,1755285038375,-300.0,0.00018167,2]
[379452868,1755285038388,-300.0,0.00018167,2]
[379452870,1755285038399,-300.0,0.00018167,2]
[379452872,1755285038416,-737.73038829,0.00018168,2]
[379452875,1755285038430,-1049.64859425,0.00018168,2]
[379452877,1755285038440,-1699.07118011,0.00018168,2]
[379452879,1755285038452,-349.4863167,0.00018266,2]
[379452881,1755285038462,-500.0,0.00018266,2]
[379452883,1755285038471,-500.0,0.00018266,2]
[379452885,1755285038482,-500.0,0.00018266,2]
[379452887,1755285038492,-500.0,0.00018266,2]
[379452889,1755285038503,-500.0,0.00018266,2]
[379452891,1755285038516,-161.45513633,0.00018266,2]
[379452893,1755285038527,-336.76531817,0.00018266,2]
[379452896,1755285038538,-500.0,0.00018266,2]
[379452899,1755285038548,-500.0,0.00018266,2]
[379452901,1755285038557,-500.0,0.00018266,2]
[379452903,1755285038568,-500.0,0.00018266,2]
[379452905,1755285038579,-500.0,0.00018266,2]
[379452907,1755285038589,-500.0,0.00018266,2]
[379452909,1755285038599,-500.0,0.00018266,2]
[379452911,1755285038610,-500.0,0.00018266,2]
[379452913,1755285038620,-500.0,0.00018266,2]
[379452915,1755285038630,-500.0,0.00018266,2]
[379452917,1755285038641,-500.0,0.00018266,2]
[379452920,1755285038652,-500.0,0.00018266,2]
[379452922,1755285038662,-500.0,0.00018266,2]
[379452924,1755285038673,-500.0,0.00018266,2]
[379452926,1755285038683,-500.0,0.00018266,2]
[379452928,1755285038695,-500.0,0.00018266,2]
[379452930,1755285038704,-500.0,0.00018266,2]
[379452932,1755285038715,-500.0,0.00018266,2]
[379452934,1755285038724,-500.0,0.00018266,2]
[379452936,1755285038735,-500.0,0.00018266,2]
[379452938,1755285038745,-500.0,0.00018266,2]
[379452941,1755285038756,-500.0,0.00018266,2]
[379452943,1755285038766,-500.0,0.00018266,2]
[379452945,1755285038777,-500.0,0.00018266,2]
[379452947,1755285038787,-500.0,0.00018266,2]
[379452949,1755285038797,-500.0,0.00018266,2]
[379452951,1755285038807,-500.0,0.00018266,2]
[379452953,1755285038818,-500.0,0.00018266,2]
[379452955,1755285038828,-500.0,0.00018266,2]
[379452957,1755285038838,-500.0,0.00018266,2]
[379452959,1755285038848,-500.0,0.00018266,2]
[379452961,1755285038858,-500.0,0.00018266,2]
[379452963,1755285038869,-500.0,0.00018266,2]
[379452965,1755285038880,-500.0,0.00018266,2]
[379452967,1755285038891,-500.0,0.00018266,2]
[379452970,1755285038901,-500.0,0.00018266,2]
[379452972,1755285038912,-369.99112297,0.00018266,2]
[379452974,1755285038922,-500.0,0.00018266,2]
[379452976,1755285038933,-500.0,0.00018266,2]
[379452978,1755285038943,-200.0,0.00018266,2]
[379452980,1755285038953,-28.81406247,0.00018266,2]
[379452983,1755285038966,-471.18593753,0.00018266,2]
[379452985,1755285038977,-500.0,0.00018266,2]
[379452987,1755285038987,-250.85,0.00018266,2]
[379452989,1755285039001,-500.0,0.00018266,2]
[379452991,1755285039011,-500.0,0.00018266,2]
[379452994,1755285039022,-500.0,0.00018266,2]
[379452996,1755285039033,-500.0,0.00018266,2]
[379452998,1755285039043,-500.0,0.00018266,2]
[379453000,1755285039054,-500.0,0.00018266,2]
[379453002,1755285039065,-500.0,0.00018266,2]
[379453004,1755285039077,-500.0,0.00018266,2]
[379453006,1755285039087,-500.0,0.00018266,2]
[379453009,1755285039097,-500.0,0.00018266,2]
[379453011,1755285039109,-500.0,0.00018266,2]
[379453013,1755285039120,-500.0,0.00018266,2]
[379453015,1755285039131,-500.0,0.00018266,2]
[379453017,1755285039142,-500.0,0.00018266,2]
[379453019,1755285039153,-500.0,0.00018266,2]
[379453020,1755285039163,-646.5613169,0.00018266,2]
[379453021,1755285039173,-500.0,0.00018266,2]
[379453022,1755285039183,-500.0,0.00018266,2]
[379453023,1755285039194,-500.0,0.00018266,2]
[379453024,1755285039204,-500.0,0.00018266,2]
[379453025,1755285039214,-382.50152291,0.00018266,2]
[379453026,1755285039223,-539.23179979,0.00018267,2]
[379453027,1755285039234,-195.55491926,0.00018267,2]
[379453028,1755285039246,-539.23179979,0.00018267,2]
[379453029,1755285039256,-539.23179979,0.00018267,2]
[379453030,1755285039268,-539.23179979,0.00018267,2]
[379453031,1755285039278,-539.23179979,0.00018267,2]
[379453032,1755285039289,-539.23179979,0.00018267,2]
[379453033,1755285039299,-539.23179979,0.00018267,2]
[379453034,1755285039309,-539.23179979,0.00018267,2]
[379453035,1755285039328,-539.23179979,0.00018267,2]
[379453036,1755285039338,-539.23179979,0.00018267,2]
[379453037,1755285039347,-539.23179979,0.00018267,2]
[379453038,1755285039357,-539.23179979,0.00018267,2]
[379453039,1755285039368,-539.23179979,0.00018267,2]
[379453040,1755285039377,-539.23179979,0.00018267,2]
[379453051,1755285039604,-539.23179979,0.00018267,2]
[379453054,1755285039624,-539.23179979,0.00018267,2]
[379453056,1755285039634,-539.23179979,0.00018267,2]
[379453058,1755285039643,-539.23179979,0.00018267,2]
[379453060,1755285039652,-539.23179979,0.00018267,2]
[379453062,1755285039663,-539.23179979,0.00018267,2]
[379453064,1755285039672,-1200.0,0.00018267,2]
[379453066,1755285039682,-16291.6438406,0.00018268,2]
[379453069,1755285039694,-33708.3561594,0.00018268,2]
[379453071,1755285039704,-500.0,0.0001827,2]
[379453073,1755285039714,-500.0,0.0001827,2]
[379453075,1755285039723,-152.21211499,0.0001827,2]
[379453077,1755285039732,-500.0,0.0001827,2]
[379453079,1755285039742,-151.0,0.0001827,2]
[379453081,1755285039753,-151.0,0.0001827,2]
[379453083,1755285039762,-500.0,0.0001827,2]
[379453085,1755285039772,-228.76955373,0.0001827,2]
[379453087,1755285039781,-151.0,0.0001827,2]
[379453089,1755285039791,-151.0,0.0001827,2]
[379453091,1755285039800,-151.0,0.0001827,2]
[379453094,1755285039810,-151.0,0.0001827,2]
[379453097,1755285039820,-151.0,0.0001827,2]
[379453099,1755285039829,-151.0,0.0001827,2]
[379453101,1755285039838,-151.0,0.0001827,2]
[379453103,1755285039848,-500.0,0.0001827,2]
[379453105,1755285039857,-500.0,0.0001827,2]
[379453107,1755285039866,-151.0,0.0001827,2]
[379453109,1755285039877,-173.68748706,0.0001827,2]
[379453111,1755285039886,-151.0,0.0001827,2]
[379453113,1755285039895,-151.56284473,0.0001827,2]
[379453115,1755285039904,-151.0,0.0001827,2]
[379453117,1755285039913,-500.0,0.0001827,2]
[379453119,1755285039922,-151.0,0.0001827,2]
[379453121,1755285039932,-151.0,0.0001827,2]
[379453123,1755285039941,-151.0,0.0001827,2]
[379453125,1755285039950,-500.0,0.00018273,2]
[379453127,1755285039959,-500.0,0.00018273,2]
[379453129,1755285039968,-500.0,0.00018273,2]
[379453131,1755285039978,-500.0,0.00018273,2]
[379453133,1755285039987,-500.0,0.00018273,2]
[379453135,1755285039998,-500.0,0.00018273,2]
[379453137,1755285040007,-500.0,0.00018273,2]
[379453139,1755285040016,-311.4163352,0.00018273,2]
[379453141,1755285040026,-509.53924554,0.00018273,2]
[379453143,1755285040035,-500.0,0.00018273,2]
[379453145,1755285040045,-500.41157304,0.00018273,2]
[379453147,1755285040054,-500.0,0.00018273,2]
[379453148,1755285040064,-500.0,0.00018273,2]
[379453150,1755285040073,-500.0,0.00018273,2]
[379453152,1755285040083,-500.0,0.00018273,2]
[379453154,1755285040092,-177.42892676,0.00018273,2]
[379453155,1755285040101,-500.0,0.00018273,2]
[379453157,1755285040113,-500.0,0.00018273,2]
[379453159,1755285040124,-500.0,0.00018273,2]
[379453161,1755285040140,-500.0,0.00018273,2]
[379453163,1755285040154,-547.76989051,0.00018273,2]
[379453164,1755285040167,-500.0,0.00018273,2]
[379453165,1755285040178,-500.0,0.00018273,2]
[379453166,1755285040188,-500.0,0.00018273,2]
[379453167,1755285040199,-332.03455376,0.00018273,2]
[379453168,1755285040210,-500.0,0.00018273,2]
[379453169,1755285040220,-500.0,0.00018273,2]
[379453170,1755285040229,-500.0,0.00018273,2]
[379453171,1755285040238,-500.0,0.00018273,2]
[379453172,1755285040247,-500.0,0.00018273,2]
[379453173,1755285040256,-158.7577131,0.00018298,2]
[379453174,1755285040266,-151.0,0.00018298,2]
[379453176,1755285040275,-500.0,0.00018298,2]
[379453178,1755285040284,-151.55192868,0.00018298,2]
[379453180,1755285040294,-500.0,0.00018298,2]
[379453181,1755285040303,-500.0,0.00018298,2]
[379453183,1755285040312,-500.0,0.00018298,2]
[379453185,1755285040321,-151.0,0.00018298,2]
[379453187,1755285040330,-151.0,0.00018298,2]
[379453189,1755285040339,-151.0,0.00018298,2]
[379453192,1755285040348,-500.0,0.00018298,2]
[379453193,1755285040357,-151.0,0.00018298,2]
[379453194,1755285040366,-151.08601362,0.00018298,2]
[379453196,1755285040375,-1787.3789825,0.00018394,2]
[379453197,1755285040384,-500.0,0.00018544,2]
[379453199,1755285040394,-500.0,0.00018544,2]
[379453200,1755285040403,-500.0,0.00018544,2]
[379453201,1755285040415,-151.0,0.00018544,2]
[379453202,1755285040423,-151.22279765,0.00018544,2]
[379453203,1755285040433,-547.0,0.00018544,2]
[379453204,1755285040442,-151.0,0.00018544,2]
[379453205,1755285040453,-151.2655407,0.00018544,2]
[379453206,1755285040462,-269.4039774,0.00018544,2]
[379453207,1755285040471,-151.0,0.00018544,2]
[379453208,1755285040480,-151.0,0.00018544,2]
[379453209,1755285040490,-500.0,0.00018544,2]
[379453210,1755285040501,-500.0,0.00018544,2]
[379453211,1755285040510,-151.0,0.00018544,2]
[379453212,1755285040519,-500.0,0.00018544,2]
[379453213,1755285040529,-151.0,0.00018544,2]
[379453214,1755285040537,-151.0,0.00018544,2]
[379453215,1755285040547,-151.0,0.00018544,2]
[379453216,1755285040556,-210.57,0.00018562,3]
[379453217,1755285040566,-604.0,0.00018572,2]
[379453218,1755285040576,-500.0,0.00018572,2]
[379453219,1755285040586,-500.0,0.00018572,2]
[379453220,1755285040595,-650.999999,0.00018572,2]
[379453221,1755285040604,-151.0,0.00018572,2]
[379453222,1755285040616,-151.0,0.00018572,2]
[379453223,1755285040628,-500.0,0.00018572,2]
[379453224,1755285040639,-1787.3789825,0.00018621,2]
[379453225,1755285040648,-421.14,0.00018626,3]
[379453226,1755285040657,-200.0,0.00018632,20]
[379453227,1755285040666,-200.0,0.00018632,20]
[379453228,1755285040675,-200.0,0.00018632,20]
[379453229,1755285040684,-200.0,0.00018632,20]
[379453230,1755285040693,-200.0,0.00018632,20]
[379453231,1755285040702,-200.0,0.00018632,20]
[379453232,1755285040711,-514.33477381,0.00018818,2]
[379453233,1755285040720,-500.0,0.00018818,2]
[379453234,1755285040729,-500.0,0.00018818,2]
[379453235,1755285040738,-151.0,0.00018818,2]
[379453236,1755285040747,-151.0,0.00018818,2]
[379453237,1755285040756,-349.0,0.00018818,2]
[379453238,1755285040765,-500.0,0.00018818,2]
[379453239,1755285040774,-453.0,0.00018818,2]
[379453240,1755285040783,-922.21794459,0.00018821,2]
[379453241,1755285040793,-365.60859336,0.00018821,2]
[379453242,1755285040802,-1000.0,0.00018821,2]
[379453243,1755285040811,-236.65692157,0.00018821,2]
[379453244,1755285040820,-1000.0,0.00018821,2]
[379453245,1755285040828,-500.0,0.00018821,2]
[379453246,1755285040838,-500.0,0.00018821,2]
[379453247,1755285040847,-1000.0,0.00018821,2]
[379453248,1755285040856,-1000.0,0.00018821,2]
[379453249,1755285040865,-500.0,0.00018821,2]
[379453250,1755285040874,-500.0,0.00018821,2]
[379453252,1755285040883,-1000.0,0.00018821,2]
[379453253,1755285040891,-1000.0,0.00018821,2]
[379453254,1755285040900,-1000.0,0.00018821,2]
[379453255,1755285040910,-188.55944359,0.00018846,2]
[379453256,1755285040920,-500.0,0.00018846,2]
[379453257,1755285040929,-151.0,0.00018846,2]
[379453258,1755285040938,-355.51895134,0.00018846,2]
[379453259,1755285040949,-1787.3789825,0.00018847,2]
[379453260,1755285040957,-2094.80224137,0.00019067,2]
[379453261,1755285040966,-1787.3789825,0.00019073,2]
[379453262,1755285040975,-2706.37897858,0.00019073,2]
[379453263,1755285040984,-500.0,0.00019092,2]
[379453264,1755285040993,-198.0,0.00019092,2]
[379453265,1755285041003,-151.0,0.00019092,2]
[379453267,1755285041013,-453.0,0.0001912,2]
[379453269,1755285041022,-151.0,0.0001912,2]
[379453270,1755285041031,-631.74,0.00019137,3]
[379453271,1755285041040,-151.0,0.00019147,2]
[379453272,1755285041049,-151.0,0.00019147,2]
[379453273,1755285041059,-151.0,0.00019147,2]
[379453274,1755285041068,-370000.0,0.00019147,2]
[379453275,1755285041078,-160.0,0.0001915,2]